{"text_format":"3","workbook":"xlsx","n_sheets":5,"sheets":["清单编制说明","工程量清单","甲供材料一览表","安全文明施工措施费工作清单-1","分包报价综合单价分析表"],"not_rendered":{"external_links":177,"defined_names":2984},"read":"whole","date_system":"1900"}

{"sheet":"清单编制说明","index":0,"n_rows":37,"n_cols":2,"rows_kept":37,"merged":[[0,0,0,1]]}
["珠海市香洲区中小学、幼儿园办学场所及停车场改造提升工程项目施工总承包-临建工程专业分包"]
["序号","清单编制说明"]
["一","清单编制范围及依据"]
[1.1,"工程概况：项目主要建设内容为对珠海市香洲区中小学食堂、运动场、体育馆、停车场进行改造，以及部分改造任务紧迫的幼儿园的局部改造。包含57所中小学及25所幼儿园，共计82所学校。现状教学及辅助设施改造总面积63257平方米，其中:食堂改造约14882平方米，体育馆约19413平方米，教学楼约24011平方米(含南山幼儿园行政楼加固770平方米)，停车场约3690平方米。围墙约800米、排球墙约100米;广昌小学学校自行拆除原食堂，新食堂建筑总面积1261平方米;广生小学厨房扩建、文园中学第二校区餐厅扩建，扩建总面积400平方米。"]
[1.2,"项目承包方式：劳务分包□；专业分包☑；其他□。"]
[1.3,"项目承揽范围：珠海市香洲区中小学、幼儿园办学场所及停车场改造提升工程项目施工总承包-临建工程"]
[1.4,"清单编制依据：                                                                                                                                                                                                                     （1）《建设工程工程量清单计价规范》GB50500-2013及附录；                                                                                                                                                                                                  \n（2）国家或省级、行业建设主管部门颁发的计价依据和办法；                                                                                                                    \n（3）建设工程设计文件；\n（4）与建设工程项目有关的标准、规范、技术资料；\n（5）招标文件及其补充通知、答疑纪要；\n（6）施工现场情况、工程特点及常规施工方案；                                                                                                                                                                                                                                                   \n（7）其他相关资料。"]
[1.5,"本工程量清单包括清单编制说明、工程量清单、甲供材料一览表、甲定品牌一览表、零星工程单价清单、定额计价程序表、安全文明施工措施费工作清单等，上述内容均构成合同不可分割的一部分。"]
[1.6,"清单未提及的工作内容应包含但不限于：相关规范、质量通病、招标文件、施工合同、图纸要求、现场施工条件、施工方式、配合及响应政府号召的相关工作。"]
["二","清单综合单价构成及说明"]
["2.1","清单综合单价包括完成一个约定计量单位的清单项目所需的人工费、材料费（甲供材料以外的所有材料费用）、施工机具使用费、保险费（施工人员团体意外伤害保险）、管理费、利润、措施费用（详见措施费用明细）、其他费用（详见其他费用明细）、税金（按合同清单约定税率）、作为一个有经验的承包商对项目充分了解及对风险充分估计后所需承担的风险费用。"]
["2.2","清单综合单价包含措施费用明细：安全文明施工费（其中安全措施费用不低于含税造价的3%）；夜间施工增加费；非夜间施工照明费；二次搬运；冬雨季施工增加费；地上、地下设施、建筑物的临时保护设施费；已完工程及设备保护费、超高施工增加费、特殊工种培训费等。"]
["2.3","清单综合单价包含其他费用明细：预算包干费、材料试验检验费（甲供材料以外的所有材料的试验检验费用）、配合费（包括甲乙双方配合及与甲方其他分包之间的配合费用）、材料保管费（包括移交给乙方施工的甲供材料）、合同约定工期内合理的赶工费用。"]
["2.4","施工作业中若发生相关水电费，扣除方式：1、安装水电表的，按照水电表按实扣除；2、没安装水电表的，工程结算前基坑支护工程、桩基础工程按合同暂定总价的1.5%、除此之外的其他工程按合同暂定总价的0.5%先行计算扣除，工程结算时基坑支护工程、桩基础工程按结算总价的1.5%、除此之外的其他工程按结算总价的0.5%予以调整，不足100元按照扣除100元计算。"]
["三","清单计价计量规则"]
[3.1,"本合同的工程量计算规则以本合同《工程量清单》中的工程量计量规则为准，未描述内容则参照《建设工程工程量清单计价规范》GB50500-2013及附录执行，如与本合同《工程量清单》中的工程量计量规则矛盾，则以本合同《工程量清单》中的工程量计量规则为准。"]
[3.2,"涉及到房屋建筑与装饰装修等工程的项目，按国家标准《房屋建筑与装饰工程计量规范》的相应项目执行；涉及到电气、给排水、消防等安装工程的项目，按照国家标准《通用安装工程计量规范》的相应项目执行；涉及到道路、室外给排水等工程的项目，按国家标准《市政工程计量规范》的相应项目执行。"]
[3.3,"本合同中以建筑面积为工程量计价的项目，为减少争议，均以项目规划许可证上载明的建筑面积为准，如需分割计算，则以《建筑工程建筑面积计算规范》GB/T 50353-2013计算规则为准。"]
[3.4,"招标范围外的定价原则：\n（1）专业分包：本工程量清单中有相似清单项，按相似清单项换算后的确定价格；若本工程量清单中无相似的清单项，按市场价格执行或者双方谈判确定                                                                                                                             （2）劳务分包：按市场劳务价格执行或者双方谈判确定。"]
[3.5,"由于施工错误、质量问题等引起的返工等事项，工作量不予计量。"]
[3.6,"涉及苗木类清单要求苗木成活率不低于90%、灌木成活率不低于80%，如若低于上述要求成活率，承包单位须按死亡苗木实际品种及规格发包单位含税购买价格进行赔偿，赔偿数量为低于要求成活率的死亡苗木数量。"]
[3.7,"同样工作内容的清单，清单综合单价有高低时，按照综合单价低的原则结算。"]
[3.8,"结算按实际发生的有效工程量计算，工程量必须由甲方签字确认"]
["四","清单材料管理"]
[4.1,"除甲方提供的材料设备外，一切与乙方承包范围相关的材料均由乙方负责采购或租赁，其有关费用已包括在清单综合单价内。甲方提供的材料详见《甲供材料一览表》。"]
["4.2","乙方使用甲方提供的材料，须严格控制材料损耗，甲供材料损耗率按《甲供材料一览表》中约定的损耗率控制，超出材料约定损耗所浪费的材料费用由乙方按甲方含税购买价格进行赔偿。"]
["4.3","甲方提供的钢筋施工后产生的废料，由乙方负责收集整理至甲方指定地点，由甲方负责回收,且废料不充减钢筋总供应量。"]
["4.4","由乙方负责采购或租赁的材料设备由乙方按要求负责送检，相应检验费用已包含在清单综合单价中。由乙方负责采购或租赁的材料设备须符合甲方的品牌、品质要求，进场使用前须按甲方要求，接收检查，并提供材料设备相应的合格证明材料。"]
["五","增值税说明"]
["5.1","本工程需开具增值税专用发票，税率 9 %，城建税、教育附加税等其他税费均已在价税分离中不含税部分综合考虑。若后期国家或地区增值税税率发生调整，则保持不含税综合单价不变，税金按政策进行相应调整（无论调增还是调减）。"]
["六","其他说明"]
[6.1,"报价前或签订本合同前，承包人已详细阅读并了解本说明、勘探报告、地下管线、施工用电、临时设施、现场情况等资料及项目所在地的政策环境和市场环境，并自行至工地现场踏勘，承包人因不了解上述资料或现场而提出的索赔将不予受理。"]
["6.2","本清单项目名称对工作内容的描述是简单性和概括性的，并非完整无缺，其它未提及的必需工序、辅助工作等均已综合考虑在本项目各综合单价中。清单中未开列或未有说明的费用，但合同约定为本工程工作内容及工程范围的，由投标单位综合考虑在已列出的清单项目中，结算时不予计算。"]
["6.3","投标人投标时除提供投标报价单外，还须提供报价组成文件作为标书的一部分，一般情况下需提供易达计价文件，如无法使用易达软件计价的情况，按《分包报价综合单价分析表》样表提供组价文件。"]
["6.4","清单综合单价包含的安全文明施工费，需施作内容详见《安全文明施工措施费工作清单》，可根据分包承包范围及内容适当调整选择。"]
[6.5,"本项目不接受不平衡报价。"]
["6.6","《零星工程单价清单》中的清单项目及单价为固定约定，分包单位中标后，对于发包方委托的零星项目不可拒绝，零星工程单价不可更改。"]

{"sheet":"工程量清单","index":1,"n_rows":99,"n_cols":12,"rows_kept":99,"merged":[[0,0,0,11],[1,0,1,11],[2,0,2,11],[3,0,3,11],[4,0,4,11],[5,0,6,0],[5,1,6,1],[5,2,6,2],[5,3,6,3],[5,4,6,4],[5,5,6,5],[5,6,6,6],[5,7,5,9],[5,10,6,10],[5,11,6,11]]}
["珠海市香洲区中小学、幼儿园办学场所及停车场改造提升工程项目施工总承包-临建工程专业分包"]
["工程量清单"]
["供应商名称（盖章）："]
["联系人："]
["电话："]
["序号","项目名称","项目特征描述","计量规则","甲供材","计量\n单位","工程量","综合单价",null,null,"合价","备注"]
[{"$nulls":7},"不含税\n综合单价","增值   税率","含税\n综合单价"]
["一","拆除工程",{"$nulls":3},"","","",null,""]
[1,"拆除项目围墙","1、构件特征：拆除现有铁艺栏杆及砖立柱围墙；\n2、拆除内容：完整拆除所有铁艺栏杆片、混凝土立柱（包括基础）；\n3、拆除要求：保护性拆除，要求尽量保持铁艺栏杆片的完整，不得采用暴力切割或砸毁。拆除后铁艺构件需由发包方回收，承包人须负责分类堆放至指定地点。\n4、其他：拆除后场地需清理、平整；","按图示尺寸或甲方确认工程量，按拆除围墙长度以m计算","/","m",{"v":9,"d":"9.00"},null,{"v":0.09,"d":"9%"},{"$f":"H9*(1+I9)","v":{"v":0,"d":"0.00"}},{"$f":"ROUND(G9*J9,2)","v":{"v":0,"d":"0.00"}}]
[2,"植草砖保护性拆除","1、拆除地面植草砖，清理平整，拆除后的材料按甲方制定位置堆放；\n2、综合考虑完成这项工程的一切费用；","按图纸或甲方确认工程量以㎡计算","/","㎡",{"v":55,"d":"55.00"},null,{"v":0.09,"d":"9%"},{"$f":"H10*(1+I10)","v":{"v":0,"d":"0.00"}},{"$f":"ROUND(G10*J10,2)","v":{"v":0,"d":"0.00"}}]
[3,"单、双杠及篮球架拆除","1、拆除施工道路经过区域独立篮球架2个，单杠5组、双杠3组，爬梯1组\n2、拆除后修复平整，拆除后的材料按甲方制定位置堆放\n3、综合考虑完成这项工程的一切费用；","综合考虑按项包干","/","项",{"v":1,"d":"1.00"},null,{"v":0.09,"d":"9%"},{"$f":"H11*(1+I11)","v":{"v":0,"d":"0.00"}},{"$f":"ROUND(G11*J11,2)","v":{"v":0,"d":"0.00"}}]
[4,"移树","1、树木本身特征： 小叶榕，胸径40~70cm，树高20m，冠幅5.0-7.0m，生长健壮、树形完整。采用带土球移植；\n2、工作内容与范围： 包括从原址起挖、土球包扎、吊装、场内运输（运距  米）、至指定栽植点卸车、栽植、直至养护期满的全部工作。\n3、修剪： 移植前进行适度修剪，剪去病虫枝、枯死枝及部分枝叶，修剪量不超过1/4，切口平滑并涂抹伤口愈合剂。\n4、支撑： 采用四角井字撑，使用直径6-8cm的杉木杆或钢管，支撑点高度在树高1/3-1/2处，牢固美观。\n5、养护： 养护期为12个月。包含定期浇水（浇透定根水，后视墒情及时补水）、施肥（每年至少2次）、病虫害防治、夏季喷水保湿、冬季防寒、及时补植死亡植株等。确保移交时成活率达到100%。\n6、技术要求： 施工须符合《城市绿化工程施工及验收规范》（CJJ/T 82-2012）及项目所在地相关园林绿化标准。\n7、其他： 施工中产生的树枝、草绳等废弃物须清理并外运至指定垃圾场。施工时注意对周边管线、设施及环境的保护.","按图纸或甲方确认工程量以颗计算","/","棵",{"v":2,"d":"2.00"},null,{"v":0.09,"d":"9%"},{"v":0,"d":"0.00"},{"v":0,"d":"0.00"}]
["二","施工临时道路及洗车槽"]
[1,"混凝土路面","1、基层平整压实；\n2、C30混凝土，厚度15cm；\n3、包工包料，综合考虑按图纸和规范要求而实施、完成这项工程的一切有关费用；","按图纸或甲方确认工程量以m³计算","/","m³",{"v":30,"d":"30.00"},null,{"v":0.09,"d":"9%"},{"$f":"H14*(1+I14)","v":{"v":0,"d":"0.00"}},{"v":0,"d":"0.00"}]
[2,"回填砖渣（利用方）","1、类型：回填砖渣（利用现场砖渣回填）\n2、要求：表面整平，满足混凝土路面厚度要求。\n3、填方来源、运距：利用拆除砖渣\n4、其他：综合考虑按图纸和规范要求而实施、完成这项工程的一切有关费用","按图纸或甲方确认工程量以m³计算","砖渣","m³",{"v":16.5,"d":"16.50"},null,{"v":0.09,"d":"9%"},{"v":0,"d":"0.00"},{"v":0,"d":"0.00"}]
[3,"洗车槽水沟300*200","1、挖沟槽土方；\n2、100厚C15混凝土垫层；\n3、100厚砖墙，内侧抹灰压光；\n4、承压铸铁盖板；\n5、其他：综合考虑按图纸和规范要求而实施、完成这项工程的一切有关费用","按图纸或甲方确认工程量以m计算","/","m",{"v":18,"d":"18.00"},null,{"v":0.09,"d":"9%"},{"v":0,"d":"0.00"},{"v":0,"d":"0.00"}]
[4,"土方开挖","1、人工、挖掘机配合挖土方场内堆放\n2、其他：综合考虑按图纸和规范要求而实施、完成这项工程的一切有关费用","按图纸或甲方确认工程量以㎡计算","/","㎡",{"v":100,"d":"100.00"},null,{"v":0.09,"d":"9%"},{"v":0,"d":"0.00"},{"v":0,"d":"0.00"}]
[5,"挖基础土方","1、人工、挖掘机配合挖土方，开挖深度2米内；\n2、余土弃置，弃土运距投标人自行考虑","按图纸或甲方确认工程量以m³计算","/","m3",{"v":92.2,"d":"92.20"},null,{"v":0.09,"d":"9%"},{"v":0,"d":"0.00"},{"v":0,"d":"0.00"}]
[6,"回填方","1、人工、挖掘机配合回填土方；\n2、利用场内原土回填；\n3、综合考虑按图纸和规范要求而实施、完成这项工程的一切有关费用","按图纸或甲方确认工程量以m³计算","/","m3",{"v":80,"d":"80.00"},null,{"v":0.09,"d":"9%"},{"v":0,"d":"0.00"},{"v":0,"d":"0.00"}]
[7,"砖砌体","1、砖品种、规格、强度等级:水泥砖；\n2、不限于集装箱板房基础、挡墙、排水沟通、沉淀池砌筑及其他零星砌筑，综合考虑厚度；\n3、M10水泥砂浆；\n4、包工包料及所需措施费，综合考虑；","按图纸或甲方确认工程量以m³计算","/","m³",{"v":10,"d":"10.00"},null,{"v":0.09,"d":"9%"},{"v":0,"d":"0.00"},{"v":0,"d":"0.00"}]
[8,"砌体抹灰","1、综合考虑基层清理抹灰厚度、专用配套砂浆，材料的运输等工艺\n2、内外抹灰：预拌水泥防水砂浆1:2，抹灰厚度20mm.\n3、综合考虑完成此项工作所一切费用；","按图纸或甲方确认工程量以㎡计算","/","㎡",{"v":20,"d":"20.00"},null,{"v":0.09,"d":"9%"},{"v":0,"d":"0.00"},{"v":0,"d":"0.00"}]
[9,"混凝土垫层","1、100厚C15混凝土基础垫层施工；\n2、综合考虑完成此项工作所一切费用；","按图纸或甲方确认工程量以m³计算","/","m³",{"v":5,"d":"5.00"},null,{"v":0.09,"d":"9%"},{"v":0,"d":"0.00"},{"v":0,"d":"0.00"}]
["三","围挡工程"]
[1,"新建围挡","一、规格：2500mm*2600mm\n二、材质、工艺\n1、方通：长100mm×宽100mm×厚5mm（不低于）（热镀锌）；\n2、冲孔板：长2550mm×宽1223mm×厚2mm（热镀锌钢板）；\n3、斜撑低碳钢方通：长100mm×宽100mm×厚5mm；\n4、1号低碳钢板：长250mm×宽120mm×厚5mm；\n5、2号低碳钢板：长250mm×宽70mm×厚5mm；\n6、立柱高度2600mm；\n7、样式：纯白色，钢构件除锈后刷涂环氧富锌底漆60μm，氯化橡胶面漆60μm。\n三、其它要求\n1、产品符合CI手册规定的要求（斜撑为角钢：30mm*30mm*3mm（热镀锌））； \n2、报价产品价格含税、含货到现场运费、包装卸、包安装及安装配件（符合安装要求）、包验收前油漆修复等一切费用；\n3、计量高度按2.5米\n4、配合其它施工队伍施工。","按图纸或甲方确认工程量以㎡计算","/","m",{"v":100,"d":"100.00"},null,{"v":0.09,"d":"9%"},{"$f":"H24*(1+I24)","v":{"v":0,"d":"0.00"}},{"$f":"ROUND(G24*J24,2)","v":{"v":0,"d":"0.00"}}]
[2,"运输、安装围挡","1、规格：2500mm*2600mm（甲供）需投标单位在招标单位指定仓库领取,搬运费投标单位自行考虑，需将原有围挡整理、清洁；\n2、搬运地点从汇威总仓运至广昌小学,运距约5公里,\n3、安装配件投标人自行考虑\n4、产品符合CI手册规定的要求（斜撑为角钢：30mm*30mm*3mm（热镀锌））； \n5、含喷淋系统,费用投标人自行考虑; \n5、报价产品价格含税、含货到现场运费、包装卸、包安装及安装配件（符合安装要求）、包验收前油漆修复等一切费用；\n6、计量高度按2.5米","按图纸或甲方确认工程量以㎡计算","围挡","m",{"v":325,"d":"325.00"},null,{"v":0.09,"d":"9%"},{"$f":"H25*(1+I25)","v":{"v":0,"d":"0.00"}},{"$f":"ROUND(G25*J25,2)","v":{"v":0,"d":"0.00"}}]
[3,"基础模板安拆","1、模板安装、拆除，包工包料；\n2、综合考虑按设计图纸及规范要求、完成这项工程的一切费用；","按模板与混凝土接触面积以㎡计算","/","㎡",{"v":347.2,"d":"347.20"},null,{"v":0.09,"d":"9%"},{"$f":"H26*(1+I26)","v":{"v":0,"d":"0.00"}},{"$f":"ROUND(G26*J26,2)","v":{"v":0,"d":"0.00"}}]
[4,"基础C15垫层混凝土","C15混凝土：\n1.立柱基础垫层尺寸：1200mm*1200mm；\n2、斜撑基础垫层尺寸：长600mm×宽600mm；\n3、混凝土种类:预拌(商品)混凝土混凝土种类:预拌(商品)混凝土，包工包料；","按图纸或甲方确认工程量以m³计算","/","m3",{"v":10,"d":"10.00"},null,{"v":0.09,"d":"9%"},{"$f":"H27*(1+I27)","v":{"v":0,"d":"0.00"}},{"$f":"ROUND(G27*J27,2)","v":{"v":0,"d":"0.00"}}]
[5,"基础C25混凝土","C25混凝土：\n1.立柱基础1：尺寸，长800mm×宽800mm×高500mm；混凝土标号：C25，\n2、斜撑基础2：尺寸，长400mm×宽400mm×高300mm；基础混凝土标号：C25；\n3、混凝土种类:预拌(商品)混凝土，包工包料；","按图纸或甲方确认工程量以m³计算","/","m3",45.63,null,{"v":0.09,"d":"9%"},{"v":0,"d":"0.00"},{"v":0,"d":"0.00"}]
[6,"工地围墙扬尘喷淋","一、DN20的PVC管喷雾，喷头1.5m间距，喷头需朝施工场地内，管道需安装顺直，定位间距不大于40cm，不能出现波浪起伏；\n二、材质：喷头为不锈钢芯、国产优质；                             \n三、其它要求\n1、产品符合CI手册规定的要求； \n2、报价产品价格含人、材、机、措施、保险、绿色费、管理费、利润、税金、风险等所有费用综合包干单价；","按图示或甲方确认实际工程量，以中线长度按m计算","/","m",{"v":385,"d":"385.00"},null,{"v":0.09,"d":"9%"},{"v":0,"d":"0.00"},{"v":0,"d":"0.00"}]
[7,"围墙立柱角钢加固","二、材质、工艺\n1、现场650*650围墙立柱左右钢支架、规格:63*63*3方钢、50*50*5角钢加宽至800*800；\n2、采用1.2mm镀锌板裱灯布做法，其余采用1.2mm薄铁皮裱灯布；\n3、立柱顶部钢支架从2m加高至3m；\n4、综合考虑按设计图纸及规范要求、完成这项工程的一切费用；","按图纸或甲方确认工程量以加固立柱个数计算","/","个",{"v":1,"d":"1.00"},null,{"v":0.09,"d":"9%"},{"v":0,"d":"0.00"},{"v":0,"d":"0.00"}]
["四","集装箱、板房、防护棚"]
[1,"集装箱式板房吊运安装","1、集装箱尺寸：6米*3米\n2、办公室集装箱上下2层，各3间；保安室集装箱1间，标养室1间等集装箱（材料甲供）乙方负责吊运安装；\n3、搬运地点从汇威总仓运至广昌,运距约5公里；\n4、综合考虑按设计图纸及规范要求、完成这项工程的一切费用；","按图纸或甲方确认工程量以个计算","/","个",{"v":8,"d":"8.00"},null,{"v":0.09,"d":"9%"},{"v":0,"d":"0.00"},{"v":0,"d":"0.00"}]
[2,"可移动式厕所","1、名称：4人位可移动式厕所\n2、材质：彩钢材质\n3、尺寸：4.2m*1.1m*2.3m\n4、包工包料，综合考虑按设计图纸及规范要求、完成这项工程的一切费用","按图纸或甲方确认工程量以套计算","/","套",{"v":1,"d":"1.00"},null,{"v":0.09,"d":"9%"},{"v":0,"d":"0.00"},{"v":0,"d":"0.00"}]
[3,"集装箱楼梯","1、名称：集装箱楼梯，带隔水棚；\n2、尺寸：根据配套集装箱板房定制，满意使用需求；\n3、材质、工艺：采用16#槽钢；\n4、产品符合CI手册规定的要求； \n5、报价产品价格含税、运费、包装卸、货到现场安装、安装配件等综合包干单价；\n6、产品必须满足A级防火。","按图纸或甲方确认工程量以套计算","/","套",{"v":1,"d":"1.00"},null,{"v":0.09,"d":"9%"},{"v":0,"d":"0.00"},{"v":0,"d":"0.00"}]
[4,"抗台风加固","1、采用红色镀锌钢管防台风加固，屋顶钢管每3m/根、规格Φ48.3×3.6mm，屋面到地面钢丝绳及相关配件,按屋面面积计算；\n2、报价产品价格含税、运费、包装卸、货到现场安装、安装配件等综合包干单价；","按图纸或甲方确认工程量以平面投影面积㎡计算","/","m2",{"v":54,"d":"54.00"},null,{"v":0.09,"d":"9%"},{"v":0,"d":"0.00"},{"v":0,"d":"0.00"}]
[5,"九牌一图吊运安装","1、名称：九牌一图(甲供）需投标单位在招标单位指定仓库吊运,运费安装费投标单位自行考虑; \n2、报价产品价格含税、含货到现场运费、包装卸、包安装及安装配件（符合安装要求）、包验收前油漆修复等一切费用；\n3.搬运地点从汇威总仓运至广昌小学,运距约5公里；\n","按图纸或甲方确认工程量以套计算","/","套",{"v":1,"d":"1.00"},null,{"v":0.09,"d":"9%"},{"v":0,"d":"0.00"},{"v":0,"d":"0.00"}]
[6,"危险源告示牌吊运安装","1、名称：危险源告示牌(甲供）需投标单位在招标单位指定仓库吊运,运费安装费投标单位自行考虑; \n2、报价产品价格含税、含货到现场运费、包装卸、包安装及安装配件（符合安装要求）、包验收前油漆修复等一切费用；\n3.搬运地点从汇威总仓运至广昌小学,运距约5公里；\n","按图纸或甲方确认工程量以套计算","/","套",{"v":1,"d":"1.00"},null,{"v":0.09,"d":"9%"},{"v":0,"d":"0.00"},{"v":0,"d":"0.00"}]
[7,"钢筋加工棚","一、尺寸按现场实际；\n二、材质、工艺\n1、加工棚采用脚手架钢管、脚手架底座、脚手架直角扣(含螺丝)、脚手架活动扣(含螺丝)、脚手架接驳管等；\n2、采用双层顶棚，两层板之间保持500mm间距，顶层满铺50mm厚脚手板，铺木方上钉模板封闭；\n3、顶棚四周镀锌铁皮封面，面层材料品种、规格:1.2mm厚镀锌铁皮\n4、综合考虑完成此项工作的所有费用； ","按图纸或甲方确认工程量以平面投影面积㎡计算","/","m2",{"v":27,"d":"27.00"},null,{"v":0.09,"d":"9%"},{"v":0,"d":"0.00"},{"v":0,"d":"0.00"}]
["五","办公家具"]
[1,"更换锁芯","1. 锁具类型：C级防盗锁芯；\n2. 品牌：国产品牌中档次；\n3. 工作内容：拆除原有损坏锁具并清理，旧件交发包人；安装新锁具，包含因安装需要的轻微调整及修补，调试至开关灵活；\n4. 综合考虑完成此项工作的所有费用；","按图纸或甲方确认工程量以套计算","/","套",{"v":12,"d":"12.00"},null,{"v":0.09,"d":"9%"},{"$f":"H40*(1+I40)","v":{"v":0,"d":"0.00"}},{"$f":"ROUND(G40*J40,2)","v":{"v":0,"d":"0.00"}}]
[2,"办公桌椅搬运及安装","1.服务内容:将位于招标人仓库的办公桌椅搬运至指定房间，并完成安装、摆放,安装配件投标人自行考虑；\n2.搬运地点从汇威总仓运至广昌,运距约5公里；\n3.综合考虑完成此项工作的所有费用；","按图纸或甲方确认工程量以套计算","/","套",{"v":11,"d":"11.00"},null,{"v":0.09,"d":"9%"},{"v":0,"d":"0.00"},{"v":0,"d":"0.00"}]
[3,"会议桌椅","1.服务内容:将位于招标人仓库的会议桌椅搬运至指定房间，并完成安装、摆放,安装配件投标人自行考虑;；\n2.搬运地点从汇威总仓运至广昌,运距约5公里；\n3.综合考虑完成此项工作的所有费用；","按图纸或甲方确认工程量以套计算","/","套",{"v":1,"d":"1.00"},null,{"v":0.09,"d":"9%"},{"v":0,"d":"0.00"},{"v":0,"d":"0.00"}]
[4,"文件柜","1.服务内容:将位于招标人仓库的文件柜搬运至指定房间，并完成安装、摆放,安装配件投标人自行考虑；\n2.搬运地点从汇威总仓运至广昌,运距约5公里；\n3.综合考虑完成此项工作的所有费用；","按图纸或甲方确认工程量以个计算","/","个",{"v":5,"d":"5.00"},null,{"v":0.09,"d":"9%"},{"v":0,"d":"0.00"},{"v":0,"d":"0.00"}]
[5,"沙发及茶台","1.服务内容:将位于招标人仓库的沙发及茶台搬运至指定房间，并完成安装、摆放,安装配件投标人自行考虑；\n2.搬运地点从汇威总仓运至广昌,运距约5公里；\n3.综合考虑完成此项工作的所有费用；","按图纸或甲方确认工程量以套计算","/","套",{"v":1,"d":"1.00"},null,{"v":0.09,"d":"9%"},{"v":0,"d":"0.00"},{"v":0,"d":"0.00"}]
[6,"挂式空调","1.服务内容:将位于招标人仓库的挂式空调搬运至指定房间，并完成安装、摆放,安装配件投标人自行考虑；\n2.搬运地点从汇威总仓运至广昌,运距约5公里；\n3.综合考虑完成此项工作的所有费用；","按图纸或甲方确认工程量以台计算","/","台",{"v":8,"d":"8.00"},null,{"v":0.09,"d":"9%"},{"v":0,"d":"0.00"},{"v":0,"d":"0.00"}]
[7,"电动伸缩门安装","1、电动伸缩门甲供；\n2、电动伸缩门安装（含电线管材）；","按图纸或甲方确认工程量以套计算","/","套",{"v":1,"d":"1.00"},null,{"v":0.09,"d":"9%"},{"v":0,"d":"0.00"},{"v":0,"d":"0.00"}]
[8,"办公桌椅搬运及安装","1.服务内容:将位于招标人仓库的办公桌椅搬运至指定房间，并完成安装、摆放,安装配件投标人自行考虑；\n2.搬运地点从汇威总仓运至珠海电视台,运距约22公里；\n3.综合考虑完成此项工作的所有费用；","按图纸或甲方确认工程量以套计算","/","套",{"v":16,"d":"16.00"},null,{"v":0.09,"d":"9%"},{"v":0,"d":"0.00"},{"v":0,"d":"0.00"}]
[9,"会议桌椅","1.服务内容:将位于招标人仓库的会议桌椅搬运至指定房间，并完成安装、摆放,安装配件投标人自行考虑；\n2.搬运地点从汇威总仓运至珠海电视台,运距约22公里；\n3.综合考虑完成此项工作的所有费用；","按图纸或甲方确认工程量以套计算","/","套",{"v":1,"d":"1.00"},null,{"v":0.09,"d":"9%"},{"v":0,"d":"0.00"},{"v":0,"d":"0.00"}]
[10,"文件柜","1.服务内容:将位于招标人仓库的文件柜搬运至指定房间，并完成安装、摆放,安装配件投标人自行考虑；\n2.搬运地点从汇威总仓运至珠海电视台,运距约22公里；\n3.综合考虑完成此项工作的所有费用；","按图纸或甲方确认工程量以个计算","/","个",{"v":15,"d":"15.00"},null,{"v":0.09,"d":"9%"},{"v":0,"d":"0.00"},{"v":0,"d":"0.00"}]
[11,"沙发及茶台","1.服务内容:将位于招标人仓库的沙发及茶台搬运至指定房间，并完成安装、摆放,安装配件投标人自行考虑； \n2.搬运地点从汇威总仓运至珠海电视台,运距约22公里；\n3.综合考虑完成此项工作的所有费用；","按图纸或甲方确认工程量以套计算","/","套",{"v":3,"d":"3.00"},null,{"v":0.09,"d":"9%"},{"v":0,"d":"0.00"},{"v":0,"d":"0.00"}]
[12,"挂式空调","1.服务内容:将位于招标人仓库的挂式空调搬运至指定房间，并完成安装、摆放,安装配件投标人自行考虑；\n2.搬运地点从汇威总仓运至珠海电视台,运距约22公里；\n3.综合考虑完成此项工作的所有费用；","按图纸或甲方确认工程量以台计算","/","台",{"v":7,"d":"7.00"},null,{"v":0.09,"d":"9%"},{"v":0,"d":"0.00"},{"v":0,"d":"0.00"}]
[13,"立柜式空调","1.服务内容:将位于招标人仓库的立柜式空调至指定房间，并完成安装、摆放,安装配件投标人自行考虑；\n2.搬运地点从汇威总仓运至珠海电视台,运距约22公里；\n3.综合考虑完成此项工作的所有费用；","按图纸或甲方确认工程量以台计算","/","台",{"v":1,"d":"1.00"},null,{"v":0.09,"d":"9%"},{"v":0,"d":"0.00"},{"v":0,"d":"0.00"}]
[14,"原有集装箱地面修复","1. 对集装箱办公室内，因使用磨损、受潮起拱、基层开裂等原因导致的局部破损、凹陷、开裂、空鼓、接缝翘边等缺陷的地板进行修复，总面积约 10平方米；\n2.修复做法：铲除破损部位面层及松动基层,加固处理；\n3.包含拆除、基层处理、新材铺装、垃圾堆放至指定地点、成品保护及清洁等完成地面翻新的全部工作；","按图纸或甲方确认工程量以㎡计算","/","㎡",{"v":10,"d":"10.00"},null,{"v":0.09,"d":"9%"},{"v":0,"d":"0.00"},{"v":0,"d":"0.00"}]
[15,"集装箱喷漆","1、锈蚀定义： 包括但不限于：点状锈蚀、片状锈蚀、锈泡以及因锈蚀导致的漆膜起皮、剥落区域；\n2、工艺标准：锈蚀区域采用工具打磨至合格标准。打磨后清洁表面，涂刷 与原箱体同色的面漆(三遍)；\n3、包含除锈、打磨、清理、全部涂层材料、人工、机械及辅材的一切费用；","按图纸或甲方确认工程量以㎡计算","/","㎡",{"v":30,"d":"30.00"},null,{"v":0.09,"d":"9%"},{"v":0,"d":"0.00"},{"v":0,"d":"0.00"}]
[16,"玻璃幕墙清洗","1、清洗范围：玻璃及相接的金属框架及门窗同步清洁；\n2、主要污渍类型日常积尘、雨水渍；\n3、采用高空作业车进行清洗；\n4、综合考虑完成此项工作的所有费用","按图纸或甲方确认工程量以㎡计算","/","㎡",{"v":83,"d":"83.00"},null,{"v":0.09,"d":"9%"},{"v":0,"d":"0.00"},{"v":0,"d":"0.00"}]
[17,"垃圾清运","1、清理招标人指定的废品； \n2、8方自卸汽车自行运输消纳；\n3、综合考虑完成此项工作的所有费用； ","按现场甲方确认工程量以车/次计算","/","车/次",{"v":5,"d":"5.00"},null,{"v":0.09,"d":"9%"},{"v":0,"d":"0.00"},{"v":0,"d":"0.00"}]
[18,"垃圾清运","1、清理招标人指定的废品，协助装车外运（由甲方自行安排运输消纳）； \n2、综合考虑完成此项工作的所有费用； ","按现场甲方确认工程量以车/次计算","/","车/次",{"v":5,"d":"5.00"},null,{"v":0.09,"d":"9%"},{"v":0,"d":"0.00"},{"v":0,"d":"0.00"}]
["六","水电安装"]
[1,"高压洗车设备","1、额定流量12L/min以上；\n2、电压：220V；\n3、出水管长度：20米（卷轴收纳）；\n4、功率：2.4 KW以上；\n5、配套水枪喷头等；","按图纸或甲方确认工程量以套计算","/","套",{"v":1,"d":"1.00"},null,{"v":0.09,"d":"9%"},{"$f":"H59*(1+I59)","v":{"v":0,"d":"0.00"}},{"$f":"ROUND(G59*J59,2)","v":{"v":0,"d":"0.00"}}]
[2,"一级配电箱安装","1、名称:一级配电箱（甲供）需投标单位在招标单位指定仓库领取,搬运地点从汇威总仓运至广昌,运距约5公里; \n2、安装方式:落地式，防雷接地，含砼基础垫层，含接线调试等\n3、规格、型号:详见图片\n4、综合考虑按图纸和规范要求而实施、完成这项工程的一切有关费用","按图纸或甲方确认工程量以套计算","配电箱","套",{"v":1,"d":"1.00"},null,{"v":0.09,"d":"9%"},{"v":0,"d":"0.00"},{"v":0,"d":"0.00"}]
[3,"二级配电箱安装","1、名称:二级配电箱（甲供）需投标单位在招标单位指定仓库领取,搬运地点从汇威总仓运至广昌,运距约5公里; \n2、安装方式:落地式，防雷接地，含接线调试等\n3、规格、型号:详见设计图纸\n4、综合考虑按图纸和规范要求而实施、完成这项工程的一切有关费用","按图纸或甲方确认工程量以套计算","配电箱","套",{"v":3,"d":"3.00"},null,{"v":0.09,"d":"9%"},{"v":0,"d":"0.00"},{"v":0,"d":"0.00"}]
[4,"一级配电箱采购安装","1、名称:一级配电箱包工包料\n2、安装方式:落地式，防雷接地，含砼基础垫层，含接线调试等\n3、规格、型号:详见图片\n4、综合考虑按图纸和规范要求而实施、完成这项工程的一切有关费用","按图纸或甲方确认工程量以套计算","/","套",{"v":1,"d":"1.00"},null,{"v":0.09,"d":"9%"},{"v":0,"d":"0.00"},{"v":0,"d":"0.00"}]
[5,"二级配电箱采购安装","1、名称:二级配电箱包工包料\n2、安装方式:落地式，防雷接地，含接线调试等\n3、规格、型号:详见设计图纸\n4、综合考虑按图纸和规范要求而实施、完成这项工程的一切有关费用","按图纸或甲方确认工程量以套计算","/","套",{"v":1,"d":"1.00"},null,{"v":0.09,"d":"9%"},{"v":0,"d":"0.00"},{"v":0,"d":"0.00"}]
[6,"电力电缆安装","1、名称:电力电缆（甲供）需投标单位在招标单位指定仓库领取,搬运费投标单位自行考虑; \n2、型号:35平米以下\n3、材质:铜芯\n4、敷设方式、部位:采用PVC线管明敷。\n5、含电缆终端头的制作安装、电缆管、挖填管沟土方，包工包料\n6、综合考虑按图纸和规范要求而实施、完成这项工程的一切有关费用","按图纸或甲方确认工程量以m计算","电缆","m",{"v":200,"d":"200.00"},null,{"v":0.09,"d":"9%"},{"v":0,"d":"0.00"},{"v":0,"d":"0.00"}]
[7,"电力电缆安装","1、名称:电力电缆（甲供）需投标单位在招标单位指定仓库领取,搬运费投标单位自行考虑; \n2、型号:35平米以下\n3、材质:铜芯\n4、敷设方式、部位:采用PVC线管明敷。\n5、含电缆终端头的制作安装、电缆管、挖填管沟土方，包工包料\n6、综合考虑按图纸和规范要求而实施、完成这项工程的一切有关费用","按图纸或甲方确认工程量以m计算","电缆","m",{"v":200,"d":"200.00"},null,{"v":0.09,"d":"9%"},{"v":0,"d":"0.00"},{"v":0,"d":"0.00"}]
[8,"电力电缆采购安装","1、名称:电力电缆（甲供）需投标单位在招标单位指定仓库领取,搬运费投标单位自行考虑; \n2、型号:YJV-0.6/1KV-3*35+2*16平方\n3、材质:铜芯\n4、敷设方式、部位:采用PVC线管明敷。\n5、含电缆终端头的制作安装、电缆管、挖填管沟土方，包工包料\n6、综合考虑按图纸和规范要求而实施、完成这项工程的一切有关费用","按图纸或甲方确认工程量以m计算","/","m",{"v":20,"d":"20.00"},null,{"v":0.09,"d":"9%"},{"v":0,"d":"0.00"},{"v":0,"d":"0.00"}]
[9,"电力电缆采购安装","1、名称:电力电缆（甲供）需投标单位在招标单位指定仓库领取,搬运费投标单位自行考虑; \n2、型号:YJV-0.6/1KV-3*10+2*6mm²\n3、材质:铜芯\n4、敷设方式、部位:采用PVC线管明敷。\n5、含电缆终端头的制作安装、电缆管、挖填管沟土方，包工包料\n6、综合考虑按图纸和规范要求而实施、完成这项工程的一切有关费用","按图纸或甲方确认工程量以m计算","/","m",{"v":20,"d":"20.00"},null,{"v":0.09,"d":"9%"},{"$f":"H67*(1+I67)","v":{"v":0,"d":"0.00"}},{"$f":"ROUND(G67*J67,2)","v":{"v":0,"d":"0.00"}}]
[10,"电力电缆采购安装","1、名称:电力电缆（甲供）需投标单位在招标单位指定仓库领取,搬运费投标单位自行考虑; \n2、型号:YJV-0.6/1KV-5*4mm²\n3、材质:铜芯\n4、敷设方式、部位:采用PVC线管明敷。\n5、含电缆终端头的制作安装、电缆管、挖填管沟土方，包工包料\n6、综合考虑按图纸和规范要求而实施、完成这项工程的一切有关费用","按图纸或甲方确认工程量以m计算","/","m",{"v":20,"d":"20.00"},null,{"v":0.09,"d":"9%"},{"v":0,"d":"0.00"},{"v":0,"d":"0.00"}]
[11,"电力电缆采购安装","1、名称:电力电缆（甲供）需投标单位在招标单位指定仓库领取,搬运费投标单位自行考虑; \n2、型号:YJV-0.6/1KV-4*16+10mm²\n3、材质:铜芯\n4、敷设方式、部位:采用PVC线管明敷。\n5、含电缆终端头的制作安装、电缆管、挖填管沟土方，包工包料\n6、综合考虑按图纸和规范要求而实施、完成这项工程的一切有关费用","按图纸或甲方确认工程量以m计算","/","m",{"v":20,"d":"20.00"},null,{"v":0.09,"d":"9%"},{"v":0,"d":"0.00"},{"v":0,"d":"0.00"}]
[12,"电线安装","1、名称:电线\n2、型号:BV\n3、规格:10mm以下\n4、材质:铜芯\n5、敷设方式:穿PVC线管(配套管)，其中线管安装长度按总电线长度的0.33倍算\n6、含铜线耳                         \n7、综合考虑按图纸和规范要求而实施、完成这项工程的一切有关费用","按图纸或甲方确认工程量以m计算","电线","m",{"v":500,"d":"500.00"},null,{"v":0.09,"d":"9%"},{"v":0,"d":"0.00"},{"v":0,"d":"0.00"}]
[13,"电线采购安装","1、名称:电线\n2、型号:BV\n3、规格:4mm2\n4、材质:铜芯\n5、敷设方式:穿PVC线管(配套管)，其中线管安装长度按总电线长度的0.33倍算\n6、含铜线耳                         \n7、综合考虑按图纸和规范要求而实施、完成这项工程的一切有关费用","按图纸或甲方确认工程量以m计算","/","m",{"v":100,"d":"100.00"},null,{"v":0.09,"d":"9%"},{"$f":"H71*(1+I71)","v":{"v":0,"d":"0.00"}},{"$f":"ROUND(G71*J71,2)","v":{"v":0,"d":"0.00"}}]
[14,"电表","1、单相220V\n2、电流100A\n3、总电箱处安装\n4、综合考虑按图纸和规范要求而实施、完成这项工程的一切有关费用","按图纸或甲方确认工程量以套计算","/","套",{"v":1,"d":"1.00"},null,{"v":0.09,"d":"9%"},{"v":0,"d":"0.00"},{"v":0,"d":"0.00"}]
[15,"电表","1、单相380V\n2、电流100A\n3、总电箱处安装\n3、其他:为满足清单所需其他未描述的工作内容，详见图纸及相关规范","按图纸或甲方确认工程量以套计算","/","套",{"v":2,"d":"2.00"},null,{"v":0.09,"d":"9%"},{"v":0,"d":"0.00"},{"v":0,"d":"0.00"}]
[16,"照明灯","1、名称:单头灯\n2、材质:组合件\n3、规格:120W(含)，5.6m高（板房顶部）\n4、光源类型: LED\n5、包工包料                        \n6、综合考虑按图纸和规范要求而实施、完成这项工程的一切有关费用","按图纸或甲方确认工程量以套计算","/","套",{"v":2,"d":"2.00"},null,{"v":0.09,"d":"9%"},{"v":0,"d":"0.00"},{"v":0,"d":"0.00"}]
[17,"网线","1、名称:六类非屏蔽线缆\n2、规格:六类UTP\n3、线缆对数:4对\n4、敷设方式:管、槽内穿放\n5、其他:为满足清单所需其他未描述的工作内容，详见图纸及相关规范","按图纸或甲方确认工程量以m计算","/","m",{"v":200,"d":"200.00"},null,{"v":0.09,"d":"9%"},{"v":0,"d":"0.00"},{"v":0,"d":"0.00"}]
[18,"PVC线槽","1、名称:pvc线槽\n2、材质:PVC\n3、规格:24*14mm (国标厚度)\n4、配置形式:明敷\n5、接地要求:符合设计及施工规范要求\n5、其他:为满足清单所需其他未描述的工作内容，详见图纸及相关规范","按图纸或甲方确认工程量以m计算","/","m",{"v":50,"d":"50.00"},null,{"v":0.09,"d":"9%"},{"v":0,"d":"0.00"},{"v":0,"d":"0.00"}]
[19,"配管","1、名称:电线管\n2、材质:PVC\n3、规格:PVC DN50(国标厚度)\n4、配置形式:明敷\n5、接地要求:符合设计及施工规范要求\n6、其他:为满足清单所需其他未描述的工作内容，详见图纸及相关规范","按图纸或甲方确认工程量以m计算","/","m",{"v":150,"d":"150.00"},null,{"v":0.09,"d":"9%"},{"v":0,"d":"0.00"},{"v":0,"d":"0.00"}]
[20,"软管","1、名称:电线软管\n2、材质:PVC\n3、规格:PVC DN50\n4、配置形式:明敷\n5、接地要求:符合设计及施工规范要求\n7、其他:为满足清单所需其他未描述的工作内容，详见图纸及相关规范","按图纸或甲方确认工程量以m计算","/","m",{"v":10,"d":"10.00"},null,{"v":0.09,"d":"9%"},{"v":0,"d":"0.00"},{"v":0,"d":"0.00"}]
[21,"配管","1、名称:电线管\n2、材质:PVC\n3、规格:PVC DN25(国标厚度)\n4、配置形式:明敷\n5、接地要求:符合设计及施工规范要求\n6、其他:为满足清单所需其他未描述的工作内容，详见图纸及相关规范","按图纸或甲方确认工程量以m计算","/","m",{"v":50,"d":"50.00"},null,{"v":0.09,"d":"9%"},{"v":0,"d":"0.00"},{"v":0,"d":"0.00"}]
[22,"软管","1、名称:电线软管\n2、材质:PVC\n3、规格:PVC DN25\n4、配置形式:明敷\n5、接地要求:符合设计及施工规范要求\n7、其他:为满足清单所需其他未描述的工作内容，详见图纸及相关规范","按图纸或甲方确认工程量以m计算","/","m",{"v":5,"d":"5.00"},null,{"v":0.09,"d":"9%"},{"v":0,"d":"0.00"},{"v":0,"d":"0.00"}]
[23,"DN110污水管","1、类型:DN110PVC污水管\n2、材质:PVC\n3、连接形式:粘接\n4、配件及辅料\n5、包工包料                       \n 6、综合考虑按图纸和规范要求而实施、完成这项工程的一切有关费用","按图纸或甲方确认工程量以m计算","/","m",{"v":50,"d":"50.00"},null,{"v":0.09,"d":"9%"},{"v":0,"d":"0.00"},{"v":0,"d":"0.00"}]
[24,"DN50排水管","1、类型:DN50排水管\n2、材质:PVC\n3、连接形式:粘接\n4、配件及辅料\n5、包工包料                       \n 6、综合考虑按图纸和规范要求而实施、完成这项工程的一切有关费用","按图纸或甲方确认工程量以m计算","/","m",{"v":8,"d":"8.00"},null,{"v":0.09,"d":"9%"},{"v":0,"d":"0.00"},{"v":0,"d":"0.00"}]
[25,"DN75排水管安装","1、类型:DN75排水管（甲供材）\n2、材质:PVC\n3、连接形式:粘接\n4、配件及辅料\n5、包工包料                       \n 6、综合考虑按图纸和规范要求而实施、完成这项工程的一切有关费用","按图纸或甲方确认工程量以m计算","排水管","m",{"v":30,"d":"30.00"},null,{"v":0.09,"d":"9%"},{"v":0,"d":"0.00"},{"v":0,"d":"0.00"}]
[26,"化粪池","1、成品玻璃钢化粪池，规格、型号：2m3；\n2、埋深深度：2m；\n3、挖、填、运、夯土方\n4、基础回填石粉、垫层                     \n5、综合考虑按图纸和规范要求而实施、完成这项工程的一切有关费用","按图纸或甲方确认工程量以座计算","/","座",{"v":1,"d":"1.00"},null,{"v":0.09,"d":"9%"},{"v":0,"d":"0.00"},{"v":0,"d":"0.00"}]
[27,"塑料管","1、安装部位:室外\n2、介质:给水\n3、材质、规格:UPVC給水管DN50\n4、连接形式:粘接\n5、压力试验及吹、洗设计要求:水压试验，水冲洗","按图纸或甲方确认工程量以m计算","/","m",{"v":50,"d":"50.00"},null,{"v":0.09,"d":"9%"},{"v":0,"d":"0.00"},{"v":0,"d":"0.00"}]
[28,"塑料管","1、安装部位:室外\n2、介质:给水\n3、材质、规格:UPVC給水管DN32\n4、连接形式:粘接\n5、压力试验及吹、洗设计要求:水压试验，水冲洗","按图纸或甲方确认工程量以m计算","/","m",{"v":100,"d":"100.00"},null,{"v":0.09,"d":"9%"},{"v":0,"d":"0.00"},{"v":0,"d":"0.00"}]
[29,"塑料管","1、安装部位:室外\n2、介质:给水\n3、材质、规格:UPVC給水管DN25\n4、连接形式:粘接\n5、压力试验及吹、洗设计要求:水压试验，水冲洗\n6、其他：综合考虑完成图纸要圡的一切内容，包含所需的所有辅材。为满足清单所需其他未描述的工作内容，详见相关规范。","按图纸或甲方确认工程量以m计算","/","m",{"v":50,"d":"50.00"},null,{"v":0.09,"d":"9.00%"},{"v":0,"d":"0.00"},{"$f":"G87*J87","v":{"v":0,"d":"0.00"}}]
[30,"塑料管安装","1、安装部位：室外\n2、介质：给水\n3、材质、规格：PVC给水管 DN20(国标厚度，材料甲供)\n4、连接形式：插入连接、承插连接\n5、压力试验及吹、洗设计要求:水压试验，水冲洗\n6、其他：综合考虑完成图纸要圡的一切内容，包含所需的所有辅材。为满足清单所需其他未描述的工作内容，详见相关规范。","按图纸或甲方确认工程量以m计算","给水管","m",{"v":50,"d":"50.00"},null,{"v":0.09,"d":"9%"},{"v":0,"d":"0.00"},{"$f":"ROUND(G88*J88,2)","v":{"v":0,"d":"0.00"}}]
[31,"阀门","1、名称:给水管球阀\n2、材质:PVC\n3、规格:DN25\n4、连接形式:插入连接、承插连接\n5、其他：为满足清单所需其他未描述的工作内容，详见图纸及相关规范","按图纸或甲方确认工程量以个计算","/","个",{"v":20,"d":"20.00"},null,{"v":0.09,"d":"9%"},{"v":0,"d":"0.00"},{"$f":"ROUND(G89*J89,2)","v":{"v":0,"d":"0.00"}}]
[32,"阀门","1、名称:给水管球阀\n2、材质:PVC\n3、规格:DN50\n4、连接形式:插入连接、承插连接\n5、其他：为满足清单所需其他未描述的工作内容，详见图纸及相关规范","按图纸或甲方确认工程量以个计算","/","个",{"v":8,"d":"8.00"},null,{"v":0.09,"d":"9%"},{"v":0,"d":"0.00"},{"v":0,"d":"0.00"}]
[33,"水表","1、名称:水表\n2、材质:PVC\n3、规格:DN50\n4、连接形式:插入连接、承插连接\n6、其他：为满足清单所需其他未描述的工作内容，详见图纸及相关规范","按图纸或甲方确认工程量以个计算","/","个",{"v":2,"d":"2.00"},null,{"v":0.09,"d":"9%"},{"v":0,"d":"0.00"},{"v":0,"d":"0.00"}]
[34,"水表","1、名称:水表\n2、材质:PVC\n3、规格:DN25\n4、连接形式:插入连接、承插连接\n7、其他：为满足清单所需其他未描述的工作内容，详见图纸及相关规范","按图纸或甲方确认工程量以个计算","/","个",{"v":1,"d":"1.00"},null,{"v":0.09,"d":"9%"},{"v":0,"d":"0.00"},{"v":0,"d":"0.00"}]
["七","零星用工"]
[1,"零星用工（大工白班）","人员要求:\n1、年龄20-50岁，不限男女；\n2、身体健康无疾病、传染病和不良嗜好的人员；\n3、工作时间:8小时/工日：超过1小时不足4小时计0.5个工日，超过4小时不足8小时计1个工日；\n4、且体以甲方现场要求为准；","以甲方实际确认用工工日为准，需提供水印相机照片","/","工日",{"v":10,"d":"10.00"},null,{"v":0.09,"d":"9%"},{"$f":"H94*(1+I94)","v":{"v":0,"d":"0.00"}},{"$f":"ROUND(G94*J94,2)","v":{"v":0,"d":"0.00"}}]
[2,"零星用工（小工白班）","人员要求:\n1、年龄20-50岁，不限男女；\n2、身体健康无疾病、传染病和不良嗜好的人员；\n3、工作时间:8小时/工日：超过1小时不足4小时计0.5个工日，超过4小时不足8小时计1个工日；\n4、且体以甲方现场要求为准；","以甲方实际确认用工工日为准，需提供水印相机照片","/","工日",{"v":10,"d":"10.00"},null,{"v":0.09,"d":"9%"},{"v":0,"d":"0.00"},{"v":0,"d":"0.00"}]
[3,"零星用工（大工夜班）","人员要求:\n1、年龄20-50岁，不限男女；\n2、身体健康无疾病、传染病和不良嗜好的人员；\n3、工作时间:8小时/工日：超过1小时不足4小时计0.5个工日，超过4小时不足8小时计1个工日；\n4、且体以甲方现场要求为准；","以甲方实际确认用工工日为准，需提供水印相机照片","/","工日",{"v":10,"d":"10.00"},null,{"v":0.09,"d":"9%"},{"v":0,"d":"0.00"},{"v":0,"d":"0.00"}]
[4,"零星用工（小工夜班）","人员要求:\n1、年龄20-50岁，不限男女；\n2、身体健康无疾病、传染病和不良嗜好的人员；\n3、工作时间:8小时/工日：超过1小时不足4小时计0.5个工日，超过4小时不足8小时计1个工日；\n4、且体以甲方现场要求为准；","以甲方实际确认用工工日为准，需提供水印相机照片","/","工日",{"v":10,"d":"10.00"},null,{"v":0.09,"d":"9%"},{"v":0,"d":"0.00"},{"v":0,"d":"0.00"}]
["三","预留金",{"$nulls":8},{"v":26000,"d":"26000.00"}]
["四","含税总价","含税总价（含9%增值税专用发票）"]

{"sheet":"甲供材料一览表","index":2,"n_rows":11,"n_cols":5,"rows_kept":11,"merged":[[0,0,0,4],[1,0,1,4]]}
["珠海市香洲区中小学、幼儿园办学场所及停车场改造提升工程项目施工总承包-临建工程专业分包"]
["甲供材料一览表"]
["序号","材料名称","规格型号","约定损耗率","备注"]
[1,"砖渣","/",{"v":0,"d":"0.00%"}]
[2,"围挡","/",{"v":0,"d":"0.00%"}]
[3,"排水管","/",{"v":0.02,"d":"2.00%"}]
[4,"给水管","/",{"v":0.02,"d":"2.00%"}]
[5,"电线","/",{"v":0.01,"d":"1.00%"}]
[6,"电缆","/",{"v":0.01,"d":"1.00%"}]
[7,"配电箱","/",{"v":0,"d":"0.00%"}]
[8]

{"sheet":"安全文明施工措施费工作清单-1","index":3,"n_rows":28,"n_cols":4,"rows_kept":28,"merged":[[0,0,0,3],[1,0,2,0],[1,1,2,1],[1,2,2,2],[1,3,2,3],[3,1,3,3],[4,1,4,3],[7,1,7,3],[10,1,10,3],[11,1,11,3],[16,1,16,3],[18,1,18,3],[19,1,19,3],[21,1,21,3],[23,1,23,3],[24,1,24,3],[26,1,26,3]]}
["安全文明施工措施工作清单-专业分包"]
["序号","项目名称","项目特征描述","备注"]
[]
["一","临时设施"]
["（1）","项目办公场所"]
["1","项目部施工总承包办公室","1.按照项目部施工总承包方办公区域管理要求自主配备相应办公设施、用电设施，该费用自行考虑；\n2.分包方按照办公室室内建筑面积  0  元/m2/月价格按月缴纳办公室使用费用（包含办公室使用费、税金、水电费，不含室内外办公设施、用电设备）；\n3.分包方安装使用大功率电器设备需报施工总承包方项目部管理人员审批统一后方可使用；\n4.如在使用过程中，出现违反项目部施工总承包方有关办公区域管理的有关行为，项目部施工总承包方有权收回办公室使用权，并按约定租金的双倍处罚。其他综合考虑","不提供"]
["2","项目附近租赁办公室","1.按照施工总承包方的管理要求租赁、布置办公室，符合国家、地区及施工总承包方的卫生、健康、安全、消防等管理规定；\n2.其他：综合考虑","不提供"]
["（2）","项目工人生活场所"]
["1","项目部施工总承包方临时设施","1.项目部施工总承包方提供工人生活住宿，水电费用自行承担，按实扣取；\n2.按照项目部施工总承包方工地生活区域管理要求管理宿舍室内环境、卫生及安全用电；\n3.分包方按照宿舍数量  0 元/间/月的价格按月缴纳宿舍使用费用（包含宿舍使用费、税金、水电费，不含室内外办公设施、用电设备）；\n4.分包方安装使用大功率电器设备需报施工总承包方项目部管理人员审批统一后方可使用；\n5.如在使用过程中，出现违反项目部施工总承包方有关工地生活区域管理的有关行为，项目部施工总承包方有权收回宿舍使用权，并按约定租金的双倍处罚。其他综合考虑","不提供"]
["2","项目附近租赁生活场所","/"]
["二","安全施工"]
["（1）","安全措施的配备"]
["1","垂直方向交叉作业防护","设置防护隔离棚或其他设施满足施工总承包方安全管理的其他要求。"]
["2","高空作业防护","有悬挂安全带的悬索或其他设施；有操作平台；有上下的梯子或其他形式的通道及满足施工总承包方安全管理的其他要求。"]
["3","保健急救措施","保健医药用品、急救用品，水上水下作业救生设备器具及满足施工总承包方安全管理的其他要求。"]
["4","施工机具的防护","施工机具防雨、防风、防沙尘的防护措施以及及满足施工总承包方安全管理的其他要求。"]
["（2）","安全教育"]
["1","安全教育","对进场作业的工人进行安全生产教育，按要求对其进行施工工序的安全交底并形成教育、交底记录以及及满足施工总承包方安全管理的其他要求。"]
["三","文明施工"]
["（1）","标识标语"]
[1,"标识标语","按照施工总承包方的管理要求按时、按位置设置施工范围内的标识标语，具体作法参考正方建设《施工现场安全与文明施工标准化手册》2021版）。"]
["（2）","材料设备堆放"]
[1,"材料设备堆放","分包材料设备堆放的堆放、材料设备的标识标牌要符合施工总承包方的管理要求，符合国家、地区及施工总承包方的安全、消防及文明施工等管理规定"]
["四","环境保护"]
["（1）","清洁卫生"]
["1","清洁卫生","在生活区、办公区、施工区产生的生活、办公及施工的分包管理人员、作业人员须按照项目部施工总承包方的管理要求，满足国家、地区及施工总承包方的卫生、健康、清洁等管理规定。"]
["（2）","垃圾清理"]
["1","垃圾清理","生活区、办公区、施工区产生的生活、办公及施工垃圾应及时清理归堆运至项目部施工总承包方的规定集中堆放地，做到工完场清。"]

{"sheet":"分包报价综合单价分析表","index":4,"n_rows":5,"n_cols":16,"rows_kept":5,"merged":[[0,0,0,15],[1,0,1,15],[2,14,2,15],[3,0,4,0],[3,1,4,1],[3,2,4,2],[3,3,4,3],[3,4,4,4],[3,5,4,5],[3,6,4,6],[3,7,3,10],[3,11,3,12],[3,13,4,13],[3,14,4,14],[3,15,4,15]]}
["珠海市香洲区中小学、幼儿园办学场所及停车场改造提升工程项目施工总承包-临建工程专业分包"]
["分包报价综合单价分析表"]
[{"$nulls":14},"单位：元"]
["序号","项目名称","项目特征描述","计量规则","甲供材料","单位","工程量（暂定）","不含税综合单价组成",{"$nulls":3},"增值税",null,"含税    综合单价","合价","备注"]
[{"$nulls":7},"人工","主材","损耗辅材机械","管理费利润等","增值税率","增值税金"]